Cogmind - Beta 10.2 *** ADVENTURER MODE // 2021.08.05 @ 20:38:39 Player: PraiseTheBrokenGod Result: Destroyed by G-47 Trooper with Particle Gun Performance ------------- Evolutions (2) 1000 Regions Visited (4) 800 Robots Destroyed (38) 190 Value Destroyed (885) 885 Prototype IDs (3) 60 Alien Tech Used (0) 0 Bonus (23) 23 TOTAL SCORE: 2958 Bonus ------- High Alert Combat Kills 23 Cogmind --------- Core Integrity 0/550 Matter 300/300 Energy 100/100 System Corruption 0% Temperature Cool (9) Movement Core (50) Location -8/Storage Parts ------- > --- POWER (2) -------- (None) > --- PROPULSION (4) --- (None) > --- UTILITY (2) ------ (None) > --- WEAPON (3) ------- (None) > --- INVENTORY (4) ---- (None) Peak State ------------ > --- POWER ------------ Heavy Ion Engine Heavy Ion Engine > --- PROPULSION ------- Light Treads Light Treads > --- UTILITY ---------- Heat Sink Large Storage Unit > --- WEAPON ----------- Advanced Beam Cannon Heavy Assault Rifle Autogun > --- INVENTORY -------- Light Treads Compact Wheel Flight Unit Heat Sink Light Armor Plating Medium Laser Particle Cannon Assault Rifle Assault Rifle [Rating: 18] Favorites ----------- Power Heavy Ion Engine Engine Heavy Ion Engine Power Core Light Nuclear Core Propulsion Light Treads Treads Light Treads Wheel Armored Wheel Flight Unit Flight Unit Utility Large Storage Unit Device Heat Sink Storage Large Storage Unit Processor Signal Interpreter Weapon Assault Rifle Energy Gun Medium Laser Energy Cannon Particle Cannon Ballistic Gun Assault Rifle Special Weapon Plasma Cutter Build | -11 -10 -9 -8 -8 ------- Run | Scr Mat Mat Mat Sto Slots Evolved 4 | . . 2 2 . Power 1 | . . 1 . . Propulsion 2 | . . . 2 . Utility . | . . . . . Weapon 1 | . . 1 . . Parts Attached 59 | 6 12 18 19 4 Power 11 | 2 . 3 4 2 Engine 8 | 2 . 3 2 1 Core 3 | . . . 2 1 Reactor . | . . . . . Propulsion 13 | 2 5 2 3 1 Treads 9 | 2 4 2 1 . Leg . | . . . . . Wheel 2 | . . . 2 . Hover . | . . . . . Flight 2 | . 1 . . 1 Utility 7 | . 4 2 . 1 Device 2 | . 1 1 . . Storage 2 | . 2 . . . Processor 3 | . 1 1 . 1 Hackware . | . . . . . Protection . | . . . . . Artifact . | . . . . . Weapon 28 | 2 3 11 12 . Energy Gun 4 | . 1 3 . . Energy Cannon 6 | . . 2 4 . Ballistic Gun 15 | 2 2 6 5 . Ballistic Cannon . | . . . . . Launcher . | . . . . . Special Weapon 3 | . . . 3 . Impact Weapon . | . . . . . Slashing Weapon . | . . . . . Piercing Weapon . | . . . . . Special Melee Weapon . | . . . . . Unidentified Prototypes 3 | . . 2 1 . Parts Lost 22 | . . 1 19 2 Power 4 | . . . 3 1 Propulsion 5 | . . . 4 1 Utility 1 | . . . 1 . Weapon 12 | . . 1 11 . Highest Loss Streak 10 | . . 1 10 2 Average Slot Usage (%) 84 | . 95 98 61 23 Engine 15 | . 14 22 10 3 Core 1 | . . . 5 5 Treads 18 | . 27 20 8 . Device 6 | . 5 7 5 . Storage 10 | . 13 11 9 3 Processor 3 | . 7 3 . 3 Energy Gun 4 | . 2 7 1 . Energy Cannon 2 | . . 2 5 . Ballistic Gun 19 | . 23 22 12 . Naked Turns 8 | . . . . 8 Heaviest Build 43 | 9 26 43 42 24 Greatest Support 40 | 40 40 40 40 12 Greatest Overweight (x) 10 | . 6 1 10 1 Average Overweight (x) . | . . . 1 . Largest Inventory Capacity 10 | 4 10 10 10 10 Average Capacity 9 | 4 9 10 10 5 Most Carried 10 | 4 7 10 10 5 Average Carried 6 | 1 4 8 7 1 Final Capacity 10 | 4 10 10 10 4 Final Carried 9 | 2 7 9 4 . Class Distribution -------------------- 48% | Mutant 44% | Gunner 4% | Scavenger-Gunner 3% | Skirmisher Dominant Class ---------------- Mutant | -10/Materials Gunner | -9/Materials Mutant | -8/Materials Mutant | -8/Storage Resources | -11 -10 -9 -8 -8 ----------- Run | Scr Mat Mat Mat Sto Matter Collected 1432 | 211 277 256 636 52 Remotely . | . . . . . Salvage Created 1252 | . 277 362 613 . Parts 71 | . 18 24 29 . Haulers Intercepted . | . . . . . Recyclers Shooed 2 | . 1 . 1 . Parts Field Recycled . | . . . . . Retrieved Matter . | . . . . . Parts Self-Destructed . | . . . . . Prevented . | . . . . . Kills | -11 -10 -9 -8 -8 ------- Run | Scr Mat Mat Mat Sto Combat Hostiles Destroyed 29 | . 3 11 15 . Guns 17 | . 3 6 8 . Cannons 10 | . . 4 6 . Classes Destroyed 10 | . 5 2 3 . Worker 1 | . . . 1 . Builder 3 | . 1 1 1 . Tunneler 1 | . 1 . . . Recycler 1 | . 1 . . . Operator 1 | . . . 1 . Watcher 2 | . 1 1 . . Swarmer 14 | . . 7 7 . Grunt 11 | . 3 2 6 . Sentry 3 | . . 2 1 . Hunter 1 | . . . 1 . Best Kill Streak 7 | . 2 4 7 . Combat Bots Only 6 | . 2 3 6 . Max Kills in Single Turn 3 | . 1 3 2 . Gunslinging 1 | . . . 1 . Exploded . | . . . . . Melee . | . . . . . Uniques/NPCs Destroyed . | . . . . . Combat | -11 -10 -9 -8 -8 -------- Run | Scr Mat Mat Mat Sto Damage Taken 2464 | . 218 575 1529 142 Core 690 | . 42 88 460 100 Absorbed by Shields . | . . . . . Core Remaining (%) 87 | 100 83 78 . . Volleys Fired 139 | . 31 49 59 . Largest 3 | . 2 3 3 . Hottest 158 | . 70 158 154 . Shots Fired 320 | . 54 130 136 . Gun 259 | . 54 111 94 . Cannon 55 | . . 19 36 . Launcher . | . . . . . Special 6 | . . . 6 . Kinetic 219 | . 53 84 82 . Thermal 84 | . 1 40 43 . Explosive . | . . . . . Electromagnetic 17 | . . 6 11 . Robot Hit Streak 21 | . 21 14 15 . Robot Miss Streak 6 | . 2 6 2 . Penetration Max . | . . . . . Secondary Targets 3 | . . . 3 . Max Gunslinging Chain 2 | . . . 2 . Shots Hit Robots 228 | . 45 82 101 . Core Hits 60 | . 12 16 31 1 Critical Hits 5 | . 3 1 1 . Critical Kills 1 | . . 1 . . Critical Parts Destroyed 4 | . 3 . 1 . Melee Attacks . | . . . . . Impact . | . . . . . Slashing . | . . . . . Piercing . | . . . . . Sneak Attacks . | . . . . . Combat Hostiles . | . . . . . Follow-up Attacks . | . . . . . Damage Inflicted 2459 | . 343 528 1580 8 Guns 1523 | . 343 323 857 . Cannons 826 | . . 163 663 . Explosions 42 | . . 42 . . Melee . | . . . . . Ramming 8 | . . . . 8 Kinetic 1243 | . 330 167 746 . Thermal 933 | . 13 322 598 . Explosive . | . . . . . Electromagnetic 275 | . . 39 236 . Impact . | . . . . . Slashing . | . . . . . Piercing . | . . . . . Highest Corruption 1 | . . 1 . . Average Corruption 1 | . . 1 . . Corruption Purged . | . . . . . Effects 1 | . . 1 . . Energy Discharges 1 | . . 1 . . Overload Shots . | . . . . . Overflow Damage 43 | . . 20 23 . Projectiles 41 | . . 18 23 . Explosions 2 | . . 2 . . Melee . | . . . . . Knockbacks . | . . . . . Impact . | . . . . . Kinetic . | . . . . . Secondary . | . . . . . Self-Inflicted Damage 3 | . . . . 3 Shots . | . . . . . Rammed 4 | . . . . 4 Targets Rammed 4 | . . . . 4 Kicked . | . . . . . Crushed . | . . . . . Highest Temperature 536 | . 9 511 536 . Average Temperature 179 | . 3 163 199 . Received Heat Transfer 1077 | . 156 111 747 63 Effects 30 | . . 14 16 . Shutdowns 7 | . . 4 3 . Energy Bleed 5 | . . 1 4 . Interference 2 | . . . 2 . Matter Decay 1 | . . . 1 . Short Circuit 2 | . . . 2 . Damage (minor) 4 | . . 1 3 . Damage (major) 8 | . . 8 . . Damage (core) 1 | . . . 1 . Siege Activations . | . . . . . Robots Corrupted 1 | . . . 1 . Combat Hostiles 1 | . . . 1 . Parts Fried 2 | . . . 2 . Impact Corruptions . | . . . . . Robots Melted 1 | . . 1 . . Combat Hostiles 1 | . . 1 . . Parts Melted 4 | . . 1 3 . Heat Transferred 2013 | . 37 656 1320 . Parts Sabotaged . | . . . . . Parts Stolen . | . . . . . Parts Stripped . | . . . . . Power Chain Reactions 1 | . . 1 . . Missiles Intercepted . | . . . . . Alert | -11 -10 -9 -8 -8 ------- Run | Scr Mat Mat Mat Sto Peak Influence 428 | . 182 181 428 56 Initial 56 | . . . 43 56 Average 121 | . 90 62 268 50 Maximum Alert Level 2 | . . . 2 . Low Security (%) 83 | 100 100 100 37 100 Level 1 12 | . . . 48 . Level 2 3 | . . . 14 . Level 3 . | . . . . . Level 4 . | . . . . . Level 5 . | . . . . . High Security . | . . . . . Max Security . | . . . . . Squads Dispatched 5 | . 1 . 3 1 Investigation 1 | . 1 . . . Extermination . | . . . . . Reinforcement 2 | . . . 1 1 Assault . | . . . . . Garrison 2 | . . . 2 . Intercept . | . . . . . Construction Impeded . | . . . . . Haulers Reinforced . | . . . . . Stealth | -11 -10 -9 -8 -8 --------- Run | Scr Mat Mat Mat Sto Distress Signals 5 | . 1 1 3 . Communications Jammed . | . . . . . Distress Signals . | . . . . . Times Spotted 61 | . 9 15 29 8 Peak Tracking Total 7 | . 3 5 7 6 Tactical Retreats 7 | . 3 . 4 . Traps | -11 -10 -9 -8 -8 ------- Run | Scr Mat Mat Mat Sto Traps Triggered 5 | . 3 1 . 1 Indirectly . | . . . . . Trap Hack Attempts . | . . . . . Triggered . | . . . . . Disarmed . | . . . . . Reprogrammed . | . . . . . Reused . | . . . . . Traps Extracted . | . . . . . Installed . | . . . . . Triggered . | . . . . . Machines | -11 -10 -9 -8 -8 ---------- Run | Scr Mat Mat Mat Sto Machines Disabled 1 | . . 1 . . Max in Single Turn 1 | . . 1 . . Machines Sabotaged . | . . . . . Garrisons Compromised . | . . . . . Overloaded Fab Kills . | . . . . . Fab Network Shutdowns . | . . . . . Hacking | -11 -10 -9 -8 -8 --------- Run | Scr Mat Mat Mat Sto Machines Accessed 3 | . . 1 2 . Terminals 2 | . . . 2 . Fabricators . | . . . . . Repair Stations 1 | . . 1 . . Recycling Units . | . . . . . Scanalyzers . | . . . . . Garrison Access . | . . . . . Total Hacks 11 | . . 4 7 . Successful 10 | . . 4 6 . Failed 1 | . . . 1 . Catastrophic . | . . . . . Database Lockouts . | . . . . . Manual . | . . . . . Terminals 7 | . . . 7 . Fabricators . | . . . . . Repair Stations 4 | . . 4 . . Recycling Units . | . . . . . Scanalyzers . | . . . . . Garrison Access . | . . . . . Terminal Hacks 6 | . . . 6 . Record 2 | . . . 2 . Locate Traps 1 | . . . 1 . Recall Investigation 1 | . . . 1 . Zone Layout 2 | . . . 2 . Fabricator Hacks . | . . . . . Repair Station Hacks 4 | . . 4 . . Scan Component 2 | . . 2 . . Repair 2 | . . 2 . . Recycling Unit Hacks . | . . . . . Scanalyzer . | . . . . . Garrison Access Hacks . | . . . . . Unauthorized Hacks . | . . . . . Terminals . | . . . . . Fabricators . | . . . . . Repair Stations . | . . . . . Recycling Units . | . . . . . Scanalyzers . | . . . . . Garrison Access . | . . . . . Data Cores Recovered . | . . . . . Used . | . . . . . Hacking Detections 1 | . . . 1 . Full Trace Events . | . . . . . Feedback Events . | . . . . . Feedback Blocked . | . . . . . Robot Schematics Acquired . | . . . . . Robots Built . | . . . . . Matter . | . . . . . Time . | . . . . . Total Robot Build Rating . | . . . . . Part Schematics Acquired . | . . . . . Parts Built . | . . . . . Matter . | . . . . . Time . | . . . . . Total Part Build Rating . | . . . . . Parts Repaired 2 | . . 2 . . Time 52 | . . 52 . . Parts Recycled . | . . . . . Recycled Matter . | . . . . . Retrieved Matter . | . . . . . Retrieved Components . | . . . . . Parts Scanalyzed . | . . . . . Part Schematics Acquired . | . . . . . Parts Damaged . | . . . . . Bothacking | -11 -10 -9 -8 -8 ------------ Run | Scr Mat Mat Mat Sto Used RIF Installer . | . . . . . Robots Hacked . | . . . . . Non-combat . | . . . . . Combat . | . . . . . Robot Hacks Applied . | . . . . . Relay Couplers Released . | . . . . . Robots Rewired . | . . . . . Allies Hacked . | . . . . . Hacks Repelled . | . . . . . Allies | -11 -10 -9 -8 -8 -------- Run | Scr Mat Mat Mat Sto Total Allies . | . . . . . Largest Group . | . . . . . Highest-Rated Group . | . . . . . Highest-Rated Ally . | . . . . . Total Orders . | . . . . . Ally Attacks . | . . . . . Total Damage . | . . . . . Kills . | . . . . . Allies Corrupted . | . . . . . Allies Melted . | . . . . . Intel | -11 -10 -9 -8 -8 ------- Run | Scr Mat Mat Mat Sto Robot Analysis Total . | . . . . . Derelict Logs Recovered . | . . . . . Drone Launches . | . . . . . Drone Recoveries . | . . . . . Exploration | -11 -10 -9 -8 -8 ------------- Run | Scr Mat Mat Mat Sto Turns Passed 1545 | 69 404 610 412 50 Spaces Moved 658 | 42 181 250 141 44 Core 33 | 10 1 . 1 21 Treads 548 | 32 180 250 86 . Legs . | . . . . . Wheels 62 | . . . 54 8 Hover . | . . . . . Flight 15 | . . . . 15 Fastest Speed 50 | 50 160 160 95 50 Average Speed 153 | 133 161 166 151 82 Slowest Speed 550 | 160 350 180 550 120 Overloaded Moves . | . . . . . Propulsion Burnouts . | . . . . . Robots Hopped . | . . . . . Cave-ins Triggered . | . . . . . Exploration Rate (%) 17 | 4 26 26 19 14 Regions Visited 4 Branch Regions 1 Pre-discovered Areas . | . . . . . Known Exits Taken . | . . . . . Unknown Exits Taken 4 | 1 1 1 1 . Scrap Searched . | . . . . . Spaces Dug . | . . . . . Terrain Destroyed 4 | . . 4 . . Melee . | . . . . . Projectile . | . . . . . AOE 4 | . . 4 . . Terrain Rammed . | . . . . . Walls Destroyed . | . . . . . Machines Disabled . | . . . . . Actions | -11 -10 -9 -8 -8 --------- Run | Scr Mat Mat Mat Sto Total 922 | 54 239 343 227 59 Wait . | . . . . . Move 654 | 41 180 249 140 44 Hop . | . . . . . Pick Up 45 | 7 13 16 8 1 Fast Attach 2 | . . 2 . . Attach 33 | 5 8 4 13 3 Detach 5 | . 2 1 . 2 Swap 25 | 1 4 12 7 1 Drop 15 | . 1 10 . 4 Fire 139 | . 31 49 59 . Melee . | . . . . . Ram 4 | . . . . 4 Kick . | . . . . . Crush . | . . . . . Escape Stasis . | . . . . . Rewire . | . . . . . Trap . | . . . . . Miscellaneous . | . . . . . Route ------- -11/Scrapyard -10/Materials -9/Materials -8/Materials -8/Storage History --------- Turn | Location | Event 9 | -11/Scrapyard | Discovered new exit (range 15) 70 | -11/Scrapyard | Entered Materials 306 | -10/Materials | Build established: Mutant 455 | -10/Materials | Discovered new exit (range 13) 474 | -10/Materials | Entered another Materials area 474 | -9/Materials | Evolved 2 slots: Power x1, Weapon x1 837 | -9/Materials | Build established: Gunner 934 | -9/Materials | Repaired Lgt. Treads 960 | -9/Materials | Repaired Lgt. Treads 1012 | -9/Materials | Discovered new exit (range 16) 1084 | -9/Materials | Entered another Materials area 1084 | -8/Materials | Evolved 2 slots: Propulsion x2 1194 | -8/Materials | Lost 3 parts (1p1n1w) 1217 | -8/Materials | Discovered new exit (range 9) 1372 | -8/Materials | Garrison activated, responded to threat 1393 | -8/Materials | Core integrity fell below 50% 1463 | -8/Materials | Core integrity fell below 20% 1488 | -8/Materials | Lost 10 parts (2p1n7w) 1496 | -8/Materials | Entered Storage 1546 | -8/Storage | Destroyed by G-47 Trooper with Particle Gun Last Messages --------------- Acquired Seismic Analyzer. Dropped Lrg. Storage Unit. C-30 ARC bursts open, deploying its payload. L-31 Rogue unfolds itself. G-47 Trooper unfolds itself. Dropped Arm. Wheel. Dropped Broken Assault Rifle. Dropped Heat Sink. Slammed into G-47 Trooper. Lgt. Nuclear Core destroyed. Flight Unit destroyed. Slammed into H-55 Commando. Penetrated by Slug. ALERT: Hostiles spotted, dispatching reinforcements to Terminal S017. Triggered Blade Trap. Massive razor-sharp blades shoot up from within the floor. Seismic Analyzer severed. U-05 Engineer lays Concrete. Slammed into U-05 Engineer. Acquired 52 matter. Map ----- +----------------------------------------------------+ | | | | | | | | | | | | | | | | | | | | | | | | | | | | | | | | | ??????????????????????????????????????????????? | | ??????????????????????????????????????????????? | | ??????????????????????????????????????????????? | | ??????????????????????????????????????????????? | | ??????????????????????????????????????????????? | | ???????????????????###+####??????#????????????? | | ???????????????????? +???? ########?????? | | ?????????????????????# #?? g """# #?????? | | ????????????????????## # g G"# #?????? | | ????????????????????#T @/ """ "??# #?????? | | ????????????????????##o # """ #??# #?????? | | ?????????????????????# #??""" #??# #?????? | | ?????????????????????# #????###??# #?????? | | ?????????????????????# m#?????????# #?????? | | ?????????????????#/### ########### #?????? | | ???????????+ a % ^ #?????? | | ?????????????### ##k######## ^ ^ =!#?????? | | ???????????????# ?# ???????# """""!*#?????? | | ???????????????#? ??# ???????# """"" [#?????? | | ???????????????? ???#""???????# """"" #?????? | | ???????????????#????#""???????# #?????? | | ????????????????????#""???????# #?????? | | ??????????????????????????????####### #?????? | | ????????????????????????????????????# #?????? | | ????????????????????????????????????# #?????? | | ????????????????????????????????????# #?????? | | ???????????????????????????????????## ##????? | | ???????????????????????????????????# #????? | | ???????????????????????????????????# #????? | | ???????????????????????????????????# #????? | | ???????????????????????????????????# #????? | | ???????????????????????????????????# #????? | | ???????????????????????????????????#######????? | | ??????????????????????????????????????????????? | +----------------------------------------------------+ Best States ------------- Heat Dissipation 41 Energy Generation 23 Energy Capacity 460 Matter Stores 300 Matter Capacity 300 Sight Range 16 Terrain Scan Range 14 Terrain Scan Density 60 Resistance: KI 20 Resistance: TH 20 Resistance: EX 20 Resistance: EM 20 Resistance: I 20 Resistance: S 20 Resistance: P 20 Evasion (%) 50 Targeting Accuracy 6 Recoil Reduction 2 Offensive Hacking 10 Item Schematics ----------------- None Robot Schematics ------------------ None Fabricated ------------ Nothing Alien Tech Used ----------------- None Achievements -------------- It's Just You Challenges ------------ None Game ------ Seed TiamatOmegaAccelerator Manual? 0 Play Time 00:30:24 Cumulative 3.8 hours Start 2021.08.05 @ 20:07:38 End 2021.08.05 @ 20:38:39 Sessions 1 Manual Loads 0 Difficulty Adventurer Special Mode None Game No. 5 Rogue 0 Adventurer 5 Explorer 0 Win Type - Total 0 Types 0/0/0/0/0/0/0/0/0 Lore% 1 Gallery% 10 Achievement% 9 Wizard Run 0 Options --------- ASCII 0 Keyboard 0 Movement Mouse Keybinds 0 Fullscreen 0 Font 16/SmallcapsGlow Map View 112x50 Tactical HUD 0 Map Filters NONE Filters NONE Steam 1 RUN: 7635d6b4-1541-4cef-a22f-59ad100e7aca